fUST/lending_fUST_20250719
["ID","MTS","AMOUNT","RATE_DAILY","PERIOD"]
[373151303,1752885047667,-1169.8,0.00017534,2]
[373151304,1752885047676,-460.0,0.00017534,2]
[373151305,1752885047685,-951.65,0.00017534,2]
[373151306,1752885047695,-926.15,0.00017534,2]
[373151307,1752885047705,-471.57,0.00017534,2]
[373151308,1752885047715,-460.0,0.00017534,2]
[373151309,1752885047725,-1437.51,0.00017534,2]
[373151310,1752885047734,-460.0,0.00017534,2]
[373151311,1752885047744,-460.0,0.00017534,2]
[373151312,1752885047753,-460.0,0.00017534,2]
[373151313,1752885047764,-460.0,0.00017534,2]
[373151314,1752885047774,-460.0,0.00017534,2]
[373151315,1752885047783,-460.0,0.00017534,2]
[373151316,1752885047793,-460.0,0.00017534,2]
[373151317,1752885047802,-460.0,0.00017534,2]
[373151318,1752885047811,-460.0,0.00017534,2]
[373151319,1752885047820,-460.0,0.00017534,2]
[373151320,1752885047829,-460.0,0.00017534,2]
[373151321,1752885047839,-460.0,0.00017534,2]
[373151322,1752885047848,-460.0,0.00017534,2]
[373151323,1752885047858,-2337.34,0.00017534,2]
[373151324,1752885047867,-1061.06,0.00017534,2]
[373151325,1752885047877,-460.0,0.00017534,2]
[373151326,1752885047886,-460.0,0.00017534,2]
[373151327,1752885047895,-460.0,0.00017534,2]
[373151328,1752885047904,-1589.71,0.00017534,2]
[373151329,1752885047914,-302.5230995,0.00017534,2]
[373151330,1752885047923,-861.43,0.00017534,2]
[373151331,1752885047932,-841.42,0.00017534,2]
[373151332,1752885047942,-806.83,0.00017534,2]
[373151333,1752885047951,-460.0,0.00017534,2]
[373151334,1752885047961,-460.0,0.00017534,2]
[373151335,1752885047970,-2257.55,0.00017534,2]
[373151336,1752885047980,-460.0,0.00017534,2]
[373151337,1752885047990,-460.0,0.00017534,2]
[373151338,1752885047999,-460.0,0.00017534,2]
[373151339,1752885048009,-460.0,0.00017534,2]
[373151340,1752885048019,-460.0,0.00017534,2]
[373151341,1752885048029,-460.0,0.00017534,2]
[373151342,1752885048042,-460.0,0.00017534,2]
[373151343,1752885048051,-984.3,0.00017534,2]
[373151344,1752885048060,-460.0,0.00017534,2]
[373151345,1752885048070,-460.0,0.00017534,2]
[373151346,1752885048079,-460.0,0.00017534,2]
[373151347,1752885048090,-460.0,0.00017534,2]
[373151348,1752885048100,-460.0,0.00017534,2]
[373151349,1752885048109,-460.0,0.00017534,2]
[373151350,1752885048121,-460.0,0.00017534,2]
[373151351,1752885048130,-460.0,0.00017534,2]
[373151352,1752885048140,-460.0,0.00017534,2]
[373151353,1752885048149,-460.0,0.00017534,2]
[373151354,1752885048159,-152.69812429,0.00017534,2]
[373151355,1752885048169,-497.05,0.00017534,2]
[373151356,1752885048179,-942.13,0.00017534,2]
[373151357,1752885048188,-500.0,0.00017571,2]
[373151358,1752885048197,-1000.0,0.00017571,2]
[373151359,1752885048207,-500.0,0.00017693,2]
[373151360,1752885048216,-34299.1342112,0.00017708,2]
[373151361,1752885048226,-207.4,0.00017782,2]
[373151362,1752885048236,-151.0,0.00017782,2]
[373151363,1752885048244,-151.0,0.00017782,2]
[373151364,1752885048254,-151.0,0.00017782,2]
[373151365,1752885048263,-151.0,0.00017782,2]
[373151366,1752885048272,-151.0,0.00017782,2]
[373151367,1752885048282,-151.0,0.00017782,2]
[373151368,1752885048291,-151.0,0.00017782,2]
[373151369,1752885048301,-151.0,0.00017782,2]
[373151370,1752885048311,-151.0,0.00017782,2]
[373151371,1752885048320,-151.0,0.00017782,2]
[373151372,1752885048329,-151.0,0.00017782,2]
[373151373,1752885048339,-151.0,0.00017782,2]
[373151374,1752885048348,-151.0,0.00017782,2]
[373151375,1752885048358,-151.0,0.00017782,2]
[373151376,1752885048368,-151.0,0.00017782,2]
[373151377,1752885048377,-151.0,0.00017782,2]
[373151378,1752885048386,-158.90468919,0.00017782,2]
[373151379,1752885048396,-25000.0,0.00017782,2]
[373151380,1752885048406,-1000.26175483,0.00017782,2]
[373151381,1752885048415,-151.0,0.00017782,2]
[373151382,1752885048424,-473.22,0.00017798,3]
[373151383,1752885048433,-542.2,0.00017798,3]
[373151384,1752885048442,-1035.12,0.00017798,3]
[373151385,1752885048452,-460.0,0.00017808,2]
[373151386,1752885048462,-460.0,0.00017808,2]
[373151387,1752885048471,-460.0,0.00017808,2]
[373151388,1752885048480,-460.0,0.00017808,2]
[373151389,1752885048489,-460.0,0.00017808,2]
[373151390,1752885048499,-460.0,0.00017808,2]
[373151391,1752885048508,-517.48,0.00017808,2]
[373151392,1752885048518,-460.0,0.00017808,2]
[373151393,1752885048527,-460.0,0.00017808,2]
[373151394,1752885048537,-460.0,0.00017808,2]
[373151395,1752885048546,-460.0,0.00017808,2]
[373151400,1752885048649,-342.7,0.00017808,2]
[373151401,1752885048659,-460.0,0.00017808,2]
[373151402,1752885048670,-1169.8,0.00017808,2]
[373151403,1752885048679,-460.0,0.00017808,2]
[373151404,1752885048689,-951.65,0.00017808,2]
[373151405,1752885048699,-926.15,0.00017808,2]
[373151406,1752885048709,-460.0,0.00017808,2]
[373151407,1752885048718,-1437.51,0.00017808,2]
[373151408,1752885048728,-460.0,0.00017808,2]
[373151409,1752885048738,-460.0,0.00017808,2]
[373151410,1752885048747,-460.0,0.00017808,2]
[373151411,1752885048757,-460.0,0.00017808,2]
[373151412,1752885048766,-460.0,0.00017808,2]
[373151413,1752885048776,-460.0,0.00017808,2]
[373151414,1752885048785,-460.0,0.00017808,2]
[373151415,1752885048795,-460.0,0.00017808,2]
[373151416,1752885048804,-460.0,0.00017808,2]
[373151417,1752885048814,-460.0,0.00017808,2]
[373151418,1752885048824,-460.0,0.00017808,2]
[373151419,1752885048834,-460.0,0.00017808,2]
[373151420,1752885048844,-2337.34,0.00017808,2]
[373151421,1752885048853,-1061.06,0.00017808,2]
[373151422,1752885048863,-548.44,0.00017808,2]
[373151423,1752885048872,-460.0,0.00017808,2]
[373151424,1752885048882,-460.0,0.00017808,2]
[373151425,1752885048892,-1589.71,0.00017808,2]
[373151426,1752885048902,-841.42,0.00017808,2]
[373151427,1752885048911,-861.43,0.00017808,2]
[373151428,1752885048921,-806.83,0.00017808,2]
[373151429,1752885048931,-460.0,0.00017808,2]
[373151430,1752885048940,-460.0,0.00017808,2]
[373151431,1752885048949,-2257.55,0.00017808,2]
[373151432,1752885048959,-460.0,0.00017808,2]
[373151433,1752885048968,-460.0,0.00017808,2]
[373151434,1752885048977,-460.0,0.00017808,2]
[373151435,1752885048987,-460.0,0.00017808,2]
[373151436,1752885048996,-460.0,0.00017808,2]
[373151437,1752885049006,-460.0,0.00017808,2]
[373151438,1752885049015,-984.3,0.00017808,2]
[373151439,1752885049025,-460.0,0.00017808,2]
[373151440,1752885049035,-460.0,0.00017808,2]
[373151441,1752885049048,-460.0,0.00017808,2]
[373151442,1752885049058,-460.0,0.00017808,2]
[373151443,1752885049067,-463.81204522,0.00017808,2]
[373151444,1752885049077,-460.0,0.00017808,2]
[373151445,1752885049087,-460.0,0.00017808,2]
[373151446,1752885049097,-497.05,0.00017808,2]
[373151447,1752885049106,-942.13,0.00017808,2]
[373151448,1752885049116,-500.0,0.00017868,2]
[373151449,1752885049126,-2010.47259328,0.000179,2]
[373151450,1752885049135,-1680.0,0.0001796,2]
[373151451,1752885049144,-420.0,0.00017962,2]
[373151452,1752885049153,-419.80491797,0.00018082,2]
[373151453,1752885049163,-460.0,0.00018082,2]
[373151454,1752885049173,-460.0,0.00018082,2]
[373151455,1752885049182,-460.0,0.00018082,2]
[373151456,1752885049192,-1169.8,0.00018082,2]
[373151457,1752885049201,-951.65,0.00018082,2]
[373151458,1752885049211,-926.15,0.00018082,2]
[373151459,1752885049220,-460.0,0.00018082,2]
[373151460,1752885049230,-1437.51,0.00018082,2]
[373151461,1752885049240,-460.0,0.00018082,2]
[373151462,1752885049249,-460.0,0.00018082,2]
[373151463,1752885049259,-460.0,0.00018082,2]
[373151464,1752885049268,-460.0,0.00018082,2]
[373151465,1752885049279,-460.0,0.00018082,2]
[373151466,1752885049288,-460.0,0.00018082,2]
[373151467,1752885049298,-460.0,0.00018082,2]
[373151468,1752885049307,-460.0,0.00018082,2]
[373151469,1752885049317,-460.0,0.00018082,2]
[373151470,1752885049326,-489.05811205,0.00018082,2]
[373151471,1752885049336,-2337.34,0.00018082,2]
[373151472,1752885049345,-1061.06,0.00018082,2]
[373151473,1752885049356,-460.0,0.00018082,2]
[373151474,1752885049366,-460.0,0.00018082,2]
[373151475,1752885049376,-1589.71,0.00018082,2]
[373151476,1752885049386,-841.42,0.00018082,2]
[373151477,1752885049395,-861.43,0.00018082,2]
[373151478,1752885049404,-806.83,0.00018082,2]
[373151479,1752885049414,-460.0,0.00018082,2]
[373151480,1752885049424,-460.0,0.00018082,2]
[373151481,1752885049433,-2257.55,0.00018082,2]
[373151482,1752885049443,-460.0,0.00018082,2]
[373151483,1752885049452,-436.5245382,0.00018082,2]
[373151484,1752885049461,-460.0,0.00018082,2]
[373151485,1752885049470,-460.0,0.00018082,2]
[373151486,1752885049479,-460.0,0.00018082,2]
[373151487,1752885049489,-460.0,0.00018082,2]
[373151488,1752885049498,-984.3,0.00018082,2]
[373151489,1752885049507,-460.0,0.00018082,2]
[373151490,1752885049516,-460.0,0.00018082,2]
[373151491,1752885049526,-460.0,0.00018082,2]
[373151492,1752885049536,-460.0,0.00018082,2]
[373151493,1752885049545,-497.05,0.00018082,2]
[373151494,1752885049554,-1500.0,0.00018119,2]
[373151495,1752885049563,-2010.47259324,0.00018176,2]
[373151496,1752885049572,-25000.0,0.0001833,2]
[373151497,1752885049581,-151.0,0.00018356,2]
[373151498,1752885049590,-460.0,0.00018356,2]
[373151499,1752885049600,-460.0,0.00018356,2]
[373151500,1752885049610,-1169.8,0.00018356,2]
[373151501,1752885049620,-951.65,0.00018356,2]
[373151502,1752885049629,-926.15,0.00018356,2]
[373151503,1752885049639,-460.0,0.00018356,2]
[373151504,1752885049648,-1437.51,0.00018356,2]
[373151505,1752885049658,-484.25,0.00018356,2]
[373151506,1752885049667,-460.0,0.00018356,2]
[373151507,1752885049677,-460.0,0.00018356,2]
[373151508,1752885049686,-460.0,0.00018356,2]
[373151509,1752885049696,-255.87507986,0.00018356,2]
[373151510,1752885049705,-460.0,0.00018356,2]
[373151511,1752885049715,-460.0,0.00018356,2]
[373151512,1752885049724,-460.0,0.00018356,2]
[373151513,1752885049733,-460.0,0.00018356,2]
[373151514,1752885049742,-2337.34,0.00018356,2]
[373151515,1752885049752,-1061.06,0.00018356,2]
[373151516,1752885049761,-460.0,0.00018356,2]
[373151517,1752885049770,-1589.71,0.00018356,2]
[373151518,1752885049780,-460.0,0.00018356,2]
[373151519,1752885049790,-806.83,0.00018356,2]
[373151520,1752885049799,-861.43,0.00018356,2]
[373151521,1752885049809,-841.42,0.00018356,2]
[373151522,1752885049818,-460.0,0.00018356,2]
[373151523,1752885049827,-2257.55,0.00018356,2]
[373151524,1752885049836,-460.0,0.00018356,2]
[373151525,1752885049847,-460.0,0.00018356,2]
[373151526,1752885049856,-460.0,0.00018356,2]
[373151527,1752885049866,-460.0,0.00018356,2]
[373151528,1752885049875,-984.3,0.00018356,2]
[373151529,1752885049884,-460.0,0.00018356,2]
[373151530,1752885049894,-460.0,0.00018356,2]
[373151531,1752885049903,-460.0,0.00018356,2]
[373151532,1752885049913,-460.0,0.00018356,2]
[373151533,1752885049922,-497.05,0.00018356,2]
[373151534,1752885049931,-2010.47259324,0.00018452,2]
[373151535,1752885049941,-460.0,0.0001863,2]
[373151536,1752885049950,-460.0,0.0001863,2]
[373151537,1752885049959,-1169.8,0.0001863,2]
[373151538,1752885049968,-951.65,0.0001863,2]
[373151539,1752885049978,-926.15,0.0001863,2]
[373151540,1752885049988,-460.0,0.0001863,2]
[373151541,1752885049998,-1437.51,0.0001863,2]
[373151542,1752885050007,-460.0,0.0001863,2]
[373151543,1752885050016,-460.0,0.0001863,2]
[373151544,1752885050027,-460.0,0.0001863,2]
[373151545,1752885050038,-460.0,0.0001863,2]
[373151546,1752885050048,-460.0,0.0001863,2]
[373151547,1752885050057,-2337.34,0.0001863,2]
[373151548,1752885050069,-1061.06,0.0001863,2]
[373151549,1752885050081,-460.0,0.0001863,2]
[373151550,1752885050090,-806.83,0.0001863,2]
[373151551,1752885050100,-460.0,0.0001863,2]
[373151552,1752885050110,-1589.71,0.0001863,2]
[373151553,1752885050119,-861.43,0.0001863,2]
[373151554,1752885050129,-841.42,0.0001863,2]
[373151555,1752885050139,-2257.55,0.0001863,2]
[373151556,1752885050148,-460.0,0.0001863,2]
[373151557,1752885050158,-460.0,0.0001863,2]
[373151558,1752885050167,-460.0,0.0001863,2]
[373151559,1752885050177,-460.0,0.0001863,2]
[373151560,1752885050187,-984.3,0.0001863,2]
[373151561,1752885050196,-460.0,0.0001863,2]
[373151562,1752885050205,-460.0,0.0001863,2]
[373151563,1752885050215,-561.17760903,0.0001863,2]
[373151564,1752885050224,-497.05,0.0001863,2]
[373151565,1752885050233,-2010.47259324,0.00018728,2]
[373151566,1752885050242,-160.0,0.00018825,2]
[373151567,1752885050251,-1442.18807593,0.000189,2]
[373151568,1752885050261,-302.8183302,0.000189,2]
[373151569,1752885050270,-302.84859387,0.000189,2]
[373151570,1752885050281,-460.0,0.00018904,2]
[373151571,1752885050290,-460.0,0.00018904,2]
[373151572,1752885050299,-1169.8,0.00018904,2]
[373151573,1752885050309,-951.65,0.00018904,2]
[373151574,1752885050318,-926.15,0.00018904,2]
[373151575,1752885050328,-460.0,0.00018904,2]
[373151576,1752885050338,-1437.51,0.00018904,2]
[373151577,1752885050347,-460.0,0.00018904,2]
[373151578,1752885050356,-460.0,0.00018904,2]
[373151579,1752885050366,-460.0,0.00018904,2]
[373151580,1752885050376,-332.13,0.00018904,2]
[373151581,1752885050385,-460.0,0.00018904,2]
[373151582,1752885050395,-2337.34,0.00018904,2]
[373151583,1752885050404,-1061.06,0.00018904,2]
[373151584,1752885050413,-460.0,0.00018904,2]
[373151585,1752885050423,-806.83,0.00018904,2]
[373151586,1752885050433,-460.0,0.00018904,2]
[373151587,1752885050442,-841.42,0.00018904,2]
[373151588,1752885050452,-1589.71,0.00018904,2]
[373151589,1752885050462,-861.43,0.00018904,2]
[373151590,1752885050471,-2257.55,0.00018904,2]
[373151591,1752885050481,-460.0,0.00018904,2]
[373151592,1752885050491,-460.0,0.00018904,2]
[373151593,1752885050501,-460.0,0.00018904,2]
[373151594,1752885050510,-460.0,0.00018904,2]
[373151595,1752885050522,-984.3,0.00018904,2]
[373151596,1752885050532,-460.0,0.00018904,2]
[373151597,1752885050541,-460.0,0.00018904,2]
[373151598,1752885050551,-497.05,0.00018904,2]
[373151599,1752885050560,-2010.47259324,0.00019003,2]
[373151600,1752885050570,-302.8183302,0.00019089,2]
[373151601,1752885050580,-302.78806653,0.00019089,2]
[373151602,1752885050589,-297.902845,0.00019122,2]
[373151603,1752885050599,-215.0738,0.00019151,2]
[373151604,1752885050609,-298.14335414,0.00019177,2]
[373151605,1752885050618,-551.46252491,0.00019177,2]
[373151606,1752885050628,-551.46252491,0.00019177,2]
[373151607,1752885050638,-551.46252491,0.00019177,2]
[373151608,1752885050647,-551.46252491,0.00019177,2]
[373151609,1752885050656,-551.46252491,0.00019177,2]
[373151610,1752885050666,-551.46252491,0.00019177,2]
[373151611,1752885050676,-551.46252491,0.00019177,2]
[373151612,1752885050779,-551.46252491,0.00019177,2]
[373151613,1752885050789,-551.46252491,0.00019177,2]
[373151614,1752885050799,-551.46252491,0.00019177,2]
[373151615,1752885050810,-551.46252491,0.00019177,2]
[373151616,1752885050820,-551.46252491,0.00019177,2]
[373151617,1752885050830,-551.46252491,0.00019177,2]
[373151618,1752885050840,-551.46252491,0.00019177,2]
[373151619,1752885050850,-551.46252491,0.00019177,2]
[373151620,1752885050859,-551.46252491,0.00019177,2]
[373151621,1752885050869,-551.46252491,0.00019177,2]
[373151622,1752885050878,-551.46252491,0.00019177,2]
[373151623,1752885050887,-460.0,0.00019178,2]
[373151624,1752885050896,-523.42783679,0.00019178,2]
[373151625,1752885050907,-1169.8,0.00019178,2]
[373151626,1752885050916,-951.65,0.00019178,2]
[373151627,1752885050926,-926.15,0.00019178,2]
[373151628,1752885050935,-460.0,0.00019178,2]
[373151629,1752885050944,-1437.51,0.00019178,2]
[373151630,1752885050954,-460.0,0.00019178,2]
[373151631,1752885050964,-460.0,0.00019178,2]
[373151632,1752885050973,-460.0,0.00019178,2]
[373151633,1752885050982,-460.0,0.00019178,2]
[373151634,1752885050991,-2337.34,0.00019178,2]
[373151635,1752885051001,-1061.06,0.00019178,2]
[373151636,1752885051011,-204.97,0.00019178,2]
[373151637,1752885051021,-806.83,0.00019178,2]
[373151638,1752885051031,-460.0,0.00019178,2]
[373151639,1752885051044,-1589.71,0.00019178,2]
[373151640,1752885051055,-841.42,0.00019178,2]
[373151641,1752885051065,-861.43,0.00019178,2]
[373151642,1752885051075,-2257.55,0.00019178,2]
[373151643,1752885051085,-460.0,0.00019178,2]
[373151644,1752885051094,-460.0,0.00019178,2]
[373151645,1752885051104,-453.37049823,0.00019178,2]
[373151646,1752885051114,-532.94946023,0.00019178,2]
[373151647,1752885051125,-984.3,0.00019178,2]
[373151648,1752885051135,-460.0,0.00019178,2]
[373151649,1752885051145,-460.0,0.00019178,2]
[373151650,1752885051155,-170.819958,0.00019178,2]
[373151651,1752885051165,-5000.0,0.00019178,2]
[373151652,1752885051175,-700.0,0.00019186,2]
[373151653,1752885051184,-500.0,0.00019256,2]
[373151654,1752885051193,-302.8183302,0.00019278,2]
[373151655,1752885051203,-2010.47259324,0.00019279,2]
[373151656,1752885051213,-260.0,0.00019373,2]
[373151657,1752885051222,-151.0,0.00019383,2]
[373151658,1752885051232,-460.0,0.00019452,2]
[373151659,1752885051241,-1169.8,0.00019452,2]
[373151660,1752885051251,-951.65,0.00019452,2]
[373151661,1752885051260,-926.15,0.00019452,2]
[373151662,1752885051270,-460.0,0.00019452,2]
[373151663,1752885051280,-1437.51,0.00019452,2]
[373151664,1752885051290,-460.0,0.00019452,2]
[373151665,1752885051299,-460.0,0.00019452,2]
[373151666,1752885051308,-460.0,0.00019452,2]
[373151667,1752885051318,-460.0,0.00019452,2]
[373151668,1752885051327,-2337.34,0.00019452,2]
[373151669,1752885051338,-1061.06,0.00019452,2]
[373151670,1752885051348,-460.0,0.00019452,2]
[373151671,1752885051358,-806.83,0.00019452,2]
[373151672,1752885051369,-1589.71,0.00019452,2]
[373151673,1752885051379,-841.42,0.00019452,2]
[373151674,1752885051389,-861.43,0.00019452,2]
[373151675,1752885051400,-2257.55,0.00019452,2]
[373151676,1752885051411,-460.0,0.00019452,2]
[373151677,1752885051421,-460.0,0.00019452,2]
[373151678,1752885051432,-984.3,0.00019452,2]
[373151679,1752885051442,-460.0,0.00019452,2]
[373151680,1752885051453,-460.0,0.00019452,2]
[373151681,1752885051465,-302.8183302,0.00019467,2]
[373151682,1752885051477,-2010.47259324,0.00019555,2]
[373151683,1752885051487,-294.0,0.00019628,2]
[373151684,1752885051497,-587.0,0.0001963,2]
[373151685,1752885051507,-152.90819453,0.00019656,2]
[373151686,1752885051518,-1947.13255648,0.00019706,2]
[373151687,1752885051528,-460.0,0.00019726,2]
[373151688,1752885051538,-1169.8,0.00019726,2]
[373151689,1752885051547,-951.65,0.00019726,2]
[373151690,1752885051558,-926.15,0.00019726,2]
[373151691,1752885051568,-1437.51,0.00019726,2]
[373151692,1752885051580,-460.0,0.00019726,2]
[373151693,1752885051589,-460.0,0.00019726,2]
[373151694,1752885051599,-460.0,0.00019726,2]
[373151695,1752885051608,-379.62,0.00019726,2]
[373151696,1752885051618,-2337.34,0.00019726,2]
[373151697,1752885051628,-1061.06,0.00019726,2]
[373151698,1752885051638,-460.0,0.00019726,2]
[373151699,1752885051647,-806.83,0.00019726,2]
[373151700,1752885051657,-1589.71,0.00019726,2]
[373151701,1752885051666,-841.42,0.00019726,2]
[373151702,1752885051676,-861.43,0.00019726,2]
[373151703,1752885051686,-2257.55,0.00019726,2]
[373151704,1752885051696,-597.57398302,0.00019726,2]
[373151705,1752885051705,-460.0,0.00019726,2]
[373151706,1752885051715,-984.3,0.00019726,2]
[373151707,1752885051724,-460.0,0.00019726,2]
[373151708,1752885051734,-460.0,0.00019726,2]
[373151709,1752885051744,-228.11352469,0.00019804,2]
[373151710,1752885051753,-500.0,0.0001983,2]
[373151711,1752885051763,-500.0,0.0001983,2]
[373151712,1752885051772,-500.0,0.0001983,2]
[373151713,1752885051782,-500.0,0.0001983,2]
[373151714,1752885051792,-500.0,0.0001983,2]
[373151715,1752885051801,-500.0,0.0001983,2]
[373151716,1752885051811,-500.0,0.0001983,2]
[373151717,1752885051821,-2010.47259324,0.00019831,2]
[373151718,1752885051830,-360.0,0.00019921,2]
[373151719,1752885051839,-2156.0,0.00019966,2]
[373151720,1752885051849,-968.0,0.00019966,2]
[373151721,1752885051859,-407.0,0.00019966,2]
[373151722,1752885051868,-647.0,0.00019966,2]
[373151723,1752885051878,-47892.47257662,0.00019989,2]
[373151724,1752885051888,-158.60664099,0.0002,2]
[373151725,1752885051898,-1169.8,0.0002,2]
[373151726,1752885051907,-951.65,0.0002,2]
[373151727,1752885051917,-926.15,0.0002,2]
[373151728,1752885051927,-1437.51,0.0002,2]
[373151729,1752885051936,-460.0,0.0002,2]
[373151730,1752885051945,-460.0,0.0002,2]
[373151731,1752885051955,-460.0,0.0002,2]
[373151732,1752885051964,-2337.34,0.0002,2]
[373151733,1752885051974,-1061.06,0.0002,2]
[373151734,1752885051983,-460.0,0.0002,2]
[373151735,1752885051993,-806.83,0.0002,2]
[373151736,1752885052002,-1589.71,0.0002,2]
[373151737,1752885052012,-841.42,0.0002,2]
[373151738,1752885052021,-861.43,0.0002,2]
[373151739,1752885052033,-2257.55,0.0002,2]
[373151740,1752885052044,-460.0,0.0002,2]
[373151741,1752885052053,-984.3,0.0002,2]
[373151742,1752885052062,-460.0,0.0002,2]
[373151743,1752885052071,-460.0,0.0002,2]
[373151744,1752885052082,-170.16000748,0.00020018,2]
[373151745,1752885052092,-150.39478184,0.00020018,2]
[373151746,1752885052101,-305.26285468,0.00020018,2]
[373151747,1752885052111,-500.0,0.00020025,2]
[373151748,1752885052121,-2010.47259324,0.00020107,2]
[373151749,1752885052131,-500.0,0.00020164,2]
[373151750,1752885052140,-500.0,0.00020186,2]
[373151751,1752885052149,-430.275259,0.00020187,2]
[373151752,1752885052159,-395.62695745,0.00020189,2]
[373151753,1752885052168,-151.0,0.00020272,2]
[373151754,1752885052178,-151.0,0.00020273,2]
[373151755,1752885052187,-1169.8,0.00020273,2]
[373151756,1752885052197,-615.265,0.00020273,2]
[373151757,1752885052206,-951.65,0.00020273,2]
[373151758,1752885052216,-926.15,0.00020273,2]
[373151759,1752885052225,-1437.51,0.00020273,2]
[373151760,1752885052234,-587.28,0.00020273,2]
[373151761,1752885052244,-460.0,0.00020273,2]
[373151762,1752885052254,-460.0,0.00020273,2]
[373151763,1752885052263,-2337.34,0.00020273,2]
[373151764,1752885052272,-1061.06,0.00020273,2]
[373151765,1752885052282,-460.0,0.00020273,2]
[373151766,1752885052292,-806.83,0.00020273,2]
[373151767,1752885052301,-1589.71,0.00020273,2]
[373151768,1752885052311,-841.42,0.00020273,2]
[373151769,1752885052320,-861.43,0.00020273,2]
[373151770,1752885052330,-2257.55,0.00020273,2]
[373151771,1752885052339,-460.0,0.00020273,2]
[373151772,1752885052348,-984.3,0.00020273,2]
[373151773,1752885052358,-460.0,0.00020273,2]
[373151774,1752885052367,-460.0,0.00020273,2]
[373151775,1752885052377,-700.0,0.00020282,2]
[373151776,1752885052386,-501.83548984,0.00020378,2]
[373151777,1752885052395,-1000.0,0.00020378,2]
[373151778,1752885052404,-500.0,0.00020378,2]
[373151779,1752885052414,-2010.47259324,0.00020383,3]
[373151780,1752885052423,-460.0,0.00020469,2]
[373151781,1752885052433,-223.0315306,0.0002052,2]
[373151782,1752885052442,-1169.8,0.00020547,2]
[373151783,1752885052451,-951.65,0.00020547,2]
[373151784,1752885052461,-926.15,0.00020547,2]
[373151785,1752885052471,-1437.51,0.00020547,2]
[373151786,1752885052480,-460.0,0.00020547,2]
[373151787,1752885052490,-460.0,0.00020547,2]
[373151788,1752885052500,-2337.34,0.00020547,2]
[373151789,1752885052509,-1061.06,0.00020547,2]
[373151790,1752885052519,-460.0,0.00020547,2]
[373151791,1752885052531,-806.83,0.00020547,2]
[373151792,1752885052540,-1589.71,0.00020547,2]
[373151793,1752885052550,-841.42,0.00020547,2]
[373151794,1752885052560,-861.43,0.00020547,2]
[373151795,1752885052570,-2257.55,0.00020547,2]
[373151796,1752885052580,-460.0,0.00020547,2]
[373151797,1752885052590,-984.3,0.00020547,2]
[373151798,1752885052600,-460.0,0.00020547,2]
[373151799,1752885052610,-460.0,0.00020547,2]
[373151800,1752885052619,-151.0,0.00020548,2]
[373151801,1752885052628,-500.0,0.00020548,2]
[373151802,1752885052638,-151.0,0.00020548,2]
[373151803,1752885052647,-151.0,0.00020548,2]
[373151804,1752885052656,-151.0,0.00020548,2]
[373151805,1752885052666,-151.0,0.00020548,2]
[373151806,1752885052676,-151.0,0.00020548,2]